fUSD/lending_fUSD_20240612
["ID","MTS","AMOUNT","RATE_DAILY","PERIOD"]
[329294919,1718221844103,-234.92919174,0.00028,2]
[329294920,1718221844120,-234.92919174,0.00028,2]
[329294922,1718221844132,-234.92919174,0.00028,2]
[329294924,1718221844161,-234.92919174,0.00028,2]
[329294927,1718221844196,-234.92919174,0.00028,2]
[329294929,1718221844217,-234.92919174,0.00028,2]
[329294931,1718221844253,-234.92919174,0.00028,2]
[329294934,1718221844280,-234.92919174,0.00028,2]
[329294935,1718221844304,-234.92919174,0.00028,2]
[329294937,1718221844326,-234.92919174,0.00028,2]
[329294939,1718221844342,-234.92919174,0.00028,2]
[329294940,1718221844372,-234.92919174,0.00028,2]
[329294942,1718221844409,-234.92919174,0.00028,2]
[329294944,1718221844420,-234.92919174,0.00028,2]
[329294946,1718221844431,-234.92919174,0.00028,2]
[329294948,1718221844443,-234.92919174,0.00028,2]
[329294950,1718221844456,-234.92919174,0.00028,2]
[329294951,1718221844492,-234.92919174,0.00028,2]
[329294954,1718221844510,-234.92919174,0.00028,2]
[329294956,1718221844527,-234.92919174,0.00028,2]
[329294958,1718221844540,-234.92919174,0.00028,2]
[329294959,1718221844554,-234.92919174,0.00028,2]
[329294961,1718221844567,-234.92919174,0.00028,2]
[329294963,1718221844584,-234.92919174,0.00028,2]
[329294965,1718221844596,-234.92919174,0.00028,2]
[329294967,1718221844608,-234.92919174,0.00028,2]
[329294968,1718221844619,-234.92919174,0.00028,2]
[329294970,1718221844632,-234.92919174,0.00028,2]
[329294972,1718221844654,-234.92919174,0.00028,2]
[329294974,1718221844692,-234.92919174,0.00028,2]
[329294976,1718221844705,-234.92919174,0.00028,2]
[329294977,1718221844719,-234.92919174,0.00028,2]
[329294979,1718221844741,-234.92919174,0.00028,2]
[329294980,1718221844765,-234.92919174,0.00028,2]
[329294982,1718221844797,-234.92919174,0.00028,2]
[329294983,1718221844827,-234.92919174,0.00028,2]
[329294986,1718221844870,-234.92919174,0.00028,2]
[329294988,1718221844890,-500.0,0.00028011,2]
[329294991,1718221844931,-500.0,0.00028021,2]
[329294993,1718221844950,-625.51119792,0.000281,2]
[329294995,1718221844962,-239.94127935,0.00028111,2]
[329294997,1718221844993,-500.0,0.00028111,2]
[329294999,1718221845011,-500.0,0.00028111,2]
[329295001,1718221845029,-500.0,0.00028111,2]
[329295002,1718221845051,-605.77285275,0.00028111,2]
[329295004,1718221845072,-500.0,0.00028111,2]
[329295007,1718221845110,-500.0,0.00028111,2]
[329295009,1718221845128,-500.0,0.00028111,2]
[329295011,1718221845151,-500.0,0.00028111,2]
[329295012,1718221845164,-150.0,0.00028118,2]
[329295014,1718221845180,-500.0,0.00028148,2]
[329295015,1718221845196,-707.2,0.00028158,2]
[329295018,1718221845210,-500.0,0.00028158,2]
[329295020,1718221845227,-154.54985129,0.0002817,2]
[329295022,1718221845255,-200.0,0.00028199,2]
[329295024,1718221845288,-158.37,0.00028232,2]
[329295025,1718221845300,-500.0,0.00028248,2]
[329295027,1718221845314,-500.0,0.00028248,2]
[329295029,1718221845325,-178.12534261,0.00028248,2]
[329295031,1718221845337,-500.0,0.00028248,2]
[329295033,1718221845351,-500.0,0.00028248,2]
[329295034,1718221845367,-500.0,0.00028248,2]
[329295036,1718221845381,-500.0,0.00028248,2]
[329295038,1718221845408,-500.0,0.00028285,2]
[329295040,1718221845422,-500.0,0.00028295,2]
[329295042,1718221845441,-1302.30583545,0.00028306,2]
[329295043,1718221845459,-500.0,0.00028385,2]
[329295046,1718221845488,-500.0,0.00028385,2]
[329295049,1718221845524,-500.0,0.00028385,2]
[329295051,1718221845537,-500.0,0.00028385,2]
[329295053,1718221845551,-500.0,0.00028385,2]
[329295055,1718221845563,-625.51119792,0.000284,2]
[329295057,1718221845576,-500.0,0.00028422,2]
[329295059,1718221845589,-500.0,0.00028432,2]
[329295061,1718221845606,-500.0,0.00028467,2]
[329295063,1718221845619,-1137.0907928,0.00028484,2]
[329295065,1718221845644,-291.98125488,0.00028484,2]
[329295067,1718221845664,-1000.0,0.000285,2]
[329295069,1718221845676,-500.0,0.00028522,2]
[329295071,1718221845696,-518.95088357,0.00028522,2]
[329295073,1718221845711,-500.0,0.00028522,2]
[329295075,1718221845722,-500.0,0.00028522,2]
[329295077,1718221845738,-500.0,0.00028522,2]
[329295079,1718221845750,-193.83670902,0.00028542,2]
[329295081,1718221845761,-154.54985129,0.00028547,2]
[329295083,1718221845772,-500.0,0.00028559,2]
[329295085,1718221845783,-500.0,0.00028569,2]
[329295087,1718221845795,-500.0,0.00028659,2]
[329295088,1718221845808,-506.39210055,0.00028659,2]
[329295090,1718221845822,-500.0,0.00028659,2]
[329295092,1718221845856,-500.0,0.00028696,2]
[329295094,1718221845873,-625.51119792,0.000287,2]
[329295096,1718221845908,-500.0,0.00028706,2]
[329295099,1718221845934,-506.40092381,0.0002871,2]
[329295101,1718221845946,-162.72443493,0.00028728,2]
[329295103,1718221845960,-500.0,0.00028768,2]
[329295105,1718221845973,-153.5063749,0.00028793,2]
[329295107,1718221845990,-500.0,0.00028796,2]
[329295109,1718221846001,-500.0,0.00028796,2]
[329295112,1718221846012,-437.0,0.00028825,5]
[329295115,1718221846023,-500.0,0.00028833,2]
[329295117,1718221846034,-150.0,0.00028839,2]
[329295119,1718221846060,-500.0,0.00028843,2]
[329295123,1718221846080,-500.0,0.00028933,2]
[329295126,1718221846093,-165.87534584,0.00028933,2]
[329295130,1718221846110,-500.0,0.0002898,2]
[329295133,1718221846124,-104534.38155893,0.0002899,2]
[329295140,1718221846200,-234.92919174,0.00028,2]
[329295142,1718221846212,-234.92919174,0.00028,2]
[329295145,1718221846227,-9246.66172696,0.0002899,2]
[329295147,1718221846267,-34030.0,0.0002899,2]
[329295150,1718221846285,-312.3160075,0.0002899,2]
[329295153,1718221846298,-337550.0000001,0.0002899,2]
[329295157,1718221846338,-234.92919174,0.00028,2]
[329295159,1718221846367,-234.92919174,0.00028,2]
[329295175,1718221846586,-923004.35012485,0.0002899,2]
[329295177,1718221846598,-360.46,0.00028998,2]
[329295179,1718221846610,-455.16482086,0.00028999,2]
[329295181,1718221846621,-1489.8087426,0.00029,2]
[329295183,1718221846632,-4173.19345114,0.00029,2]
[329295185,1718221846644,-714.70400096,0.00029,2]
[329295187,1718221846655,-30848.0975247,0.00029,2]
[329295189,1718221846666,-1039.19099102,0.00029,2]
[329295190,1718221846677,-1277.626864,0.00029,5]
[329295193,1718221846692,-763.0,0.00029,2]
[329295195,1718221846721,-839.0,0.00029,2]
[329295196,1718221846740,-699.82619584,0.00029,2]
[329295198,1718221846764,-951.70593499,0.00029,2]
[329295200,1718221846778,-664.67048756,0.00029,2]
[329295202,1718221846793,-625.51119792,0.00029,2]
[329295204,1718221846806,-2965.53077,0.00029,2]
[329295206,1718221846831,-4990.37,0.00029001,2]
[329295208,1718221846849,-150.0,0.00029032,2]
[329295210,1718221846869,-152.0,0.00029055,4]
[329295212,1718221846884,-153.5063749,0.00029068,2]
[329295214,1718221846896,-500.0,0.0002907,2]
[329295215,1718221846911,-150.0,0.00029079,2]
[329295217,1718221846922,-153.5063749,0.00029094,2]
[329295219,1718221846934,-595.0,0.000291,2]
[329295221,1718221846955,-3205.0,0.000291,2]
[329295223,1718221846969,-500.0,0.00029117,2]
[329295225,1718221846982,-1000.0,0.00029125,2]
[329295227,1718221846999,-683.1563646,0.00029202,2]
[329295229,1718221847011,-227.33820714,0.00029202,2]
[329295231,1718221847022,-500.0,0.00029207,2]
[329295233,1718221847033,-151.0,0.00029232,2]
[329295235,1718221847045,-500.0,0.00029254,2]
[329295237,1718221847056,-625.51119792,0.000293,2]
[329295239,1718221847067,-150.0,0.00029307,2]
[329295241,1718221847081,-165.0,0.00029307,2]
[329295243,1718221847098,-447.0,0.00029307,2]
[329295245,1718221847110,-2407.0,0.00029307,2]
[329295248,1718221847131,-808.0,0.00029307,2]
[329295251,1718221847153,-461.083,0.00029307,2]
[329295253,1718221847169,-3177.0,0.00029307,2]
[329295255,1718221847194,-1979.0,0.00029307,2]
[329295257,1718221847215,-1111.709,0.00029307,2]
[329295259,1718221847229,-150.0,0.00029307,2]
[329295261,1718221847254,-150.0,0.00029307,2]
[329295264,1718221847273,-295.02,0.0002931,30]
[329295265,1718221847285,-153.92724177,0.00029332,2]
[329295267,1718221847298,-500.0,0.00029344,2]
[329295269,1718221847313,-200.0,0.00029363,2]
[329295271,1718221847345,-1000.0,0.00029363,30]
[329295274,1718221847359,-500.0,0.00029363,2]
[329295276,1718221847378,-516.58,0.00029391,2]
[329295278,1718221847419,-155.26657284,0.00029469,2]
[329295280,1718221847436,-500.0,0.00029481,2]
[329295282,1718221847452,-42151.64008722,0.00029489,2]
[329295284,1718221847476,-150.0,0.0002956,2]
[329295286,1718221847499,-500.0,0.00029579,2]
[329295288,1718221847519,-5000.0,0.0002958,2]
[329295291,1718221847537,-281.0,0.000296,19]
[329295293,1718221847554,-22025.066,0.000296,2]
[329295295,1718221847570,-625.51119792,0.000296,2]
[329295297,1718221847582,-153.4147153,0.00029601,2]
[329295299,1718221847597,-500.0,0.00029618,2]
[329295301,1718221847611,-13370.35549102,0.00029698,2]
[329295303,1718221847622,-176.13900663,0.00029698,2]
[329295306,1718221847634,-207.15276082,0.00029698,2]
[329295307,1718221847645,-178.35118492,0.00029698,2]
[329295309,1718221847656,-158.45165058,0.00029698,2]
[329295311,1718221847666,-219.69,0.00029699,3]
[329295313,1718221847677,-500.0,0.000297,2]
[329295315,1718221847687,-20017.0,0.000297,2]
[329295317,1718221847699,-280.0,0.000297,2]
[329295319,1718221847710,-154.5004831,0.00029709,2]
[329295321,1718221847721,-13370.35549098,0.00029716,2]
[329295323,1718221847733,-302.0,0.00029723,4]
[329295325,1718221847749,-191.8400987,0.00029727,5]
[329295327,1718221847760,-13370.35549098,0.00029735,2]
[329295329,1718221847770,-171.2025191,0.00029737,2]
[329295331,1718221847781,-208.90252247,0.00029743,2]
[329295333,1718221847792,-285.85867902,0.00029745,2]
[329295335,1718221847803,-178.35118489,0.00029749,2]
[329295337,1718221847813,-13370.35549098,0.00029753,2]
[329295339,1718221847824,-639.48,0.00029755,2]
[329295341,1718221847834,-500.0,0.00029759,2]
[329295343,1718221847845,-4615.31940654,0.00029771,2]
[329295345,1718221847856,-13370.35549098,0.00029771,2]
[329295347,1718221847869,-151.79,0.00029788,2]
[329295349,1718221847881,-13370.35549098,0.0002979,2]
[329295351,1718221847891,-155.0,0.00029796,2]
[329295353,1718221847903,-150.51786845,0.00029796,2]
[329295355,1718221847914,-4291.83751585,0.00029796,2]
[329295357,1718221847925,-150.0,0.00029797,2]
[329295360,1718221847937,-500.0,0.00029797,2]
[329295362,1718221847948,-500.0,0.00029797,2]
[329295364,1718221847959,-864.44073182,0.00029798,3]
[329295366,1718221847970,-176.51048241,0.00029798,2]
[329295368,1718221847982,-792.46810918,0.00029798,2]
[329295370,1718221847998,-267.31376438,0.00029798,2]
[329295372,1718221848009,-7543.72254498,0.00029798,2]
[329295374,1718221848022,-1683.71711364,0.00029798,2]
[329295375,1718221848033,-3384.77160162,0.00029798,2]
[329295378,1718221848043,-5581.63842209,0.00029798,2]
[329295380,1718221848054,-156.23310905,0.00029798,2]
[329295381,1718221848064,-1230.68671206,0.00029798,2]
[329295383,1718221848080,-1980.81288904,0.00029798,2]
[329295386,1718221848100,-157.93299216,0.00029798,2]
[329295388,1718221848113,-305.21851495,0.00029798,2]
[329295390,1718221848127,-849.35358776,0.00029798,2]
[329295392,1718221848138,-2693.2698769,0.00029798,2]
[329295394,1718221848148,-201.7302263,0.00029798,2]
[329295395,1718221848160,-1077.51513426,0.00029798,5]
[329295397,1718221848173,-163.1692946,0.00029798,2]
[329295399,1718221848187,-1392.58693338,0.00029798,2]
[329295402,1718221848200,-1490.2486096,0.00029798,2]
[329295403,1718221848218,-786.3940397,0.00029798,2]
[329295404,1718221848254,-288.18130188,0.00029798,2]
[329295405,1718221848267,-263.84998264,0.00029798,2]
[329295406,1718221848283,-217.44360157,0.00029798,2]
[329295407,1718221848298,-659.07845299,0.00029798,2]
[329295408,1718221848326,-10977.35791684,0.00029798,2]
[329295409,1718221848358,-1266.39461779,0.00029798,2]
[329295411,1718221848372,-8421.50868744,0.00029798,2]
[329295414,1718221848400,-136640.5671148,0.00029798,2]
[329295416,1718221848425,-5961.86878266,0.00029798,2]
[329295420,1718221848463,-234.92919174,0.00028,2]
[329295422,1718221848475,-244.07934999,0.00029798,2]
[329295427,1718221848544,-234.92919174,0.00028,2]
[329295429,1718221848563,-234.92919174,0.00028,2]
[329295430,1718221848575,-2931.64161652,0.00029798,2]
[329295432,1718221848590,-866.3071139,0.00029798,2]
[329295436,1718221848620,-25438.67,0.00029798,2]
[329295438,1718221848641,-9112.24601663,0.00029798,2]
[329295440,1718221848663,-276.6520625,0.00029798,2]
[329295442,1718221848688,-4600.38331592,0.00029798,2]
[329295444,1718221848704,-694.99999887,0.00029798,2]
[329295446,1718221848721,-11420.53180816,0.00029798,2]
[329295448,1718221848736,-201.67489333,0.00029798,2]
[329295450,1718221848749,-155.0,0.00029798,2]
[329295452,1718221848761,-155.0,0.00029798,2]
[329295454,1718221848772,-238.21449077,0.00029798,2]
[329295456,1718221848788,-1585.93313006,0.00029798,2]
[329295457,1718221848800,-1142.0728789,0.00029798,2]
[329295459,1718221848811,-167.90057075,0.00029798,2]
[329295461,1718221848825,-1058.92747817,0.00029798,2]
[329295463,1718221848848,-1824.91790879,0.00029798,2]
[329295465,1718221848890,-543.83021088,0.00029798,2]
[329295467,1718221848912,-307.51066207,0.00029798,90]
[329295469,1718221848929,-306.91928889,0.00029798,2]
[329295470,1718221848940,-291.28906462,0.00029798,2]
[329295471,1718221848951,-266.00436118,0.00029798,2]
[329295474,1718221848984,-485.52390305,0.00029798,7]
[329295476,1718221849000,-6615.48937853,0.00029798,2]
[329295481,1718221849048,-234.92919174,0.00028,2]
[329295483,1718221849077,-250.37080821,0.00028786,10]
[329295485,1718221849094,-123.35919179,0.00028786,10]
[329295487,1718221849115,-585.81080821,0.00029798,2]
[329295488,1718221849128,-701.11,0.00029798,2]
[329295490,1718221849141,-6871.84996044,0.00029798,2]
[329295494,1718221849188,-10527.58961953,0.00029798,2]
[329295496,1718221849202,-510.67627423,0.00029798,2]
[329295497,1718221849213,-988.12835218,0.00029798,2]
[329295499,1718221849224,-19471.71260439,0.00029798,2]
[329295508,1718221849413,-377.86425217,0.00027874,2]
[329295512,1718221849452,-500.0,0.00026999,2]
[329295514,1718221849463,-122.13574783,0.00027874,2]
[329295516,1718221849489,-234.92919174,0.00028,2]
[329295518,1718221849505,-234.92919174,0.00028,2]
[329295520,1718221849520,-234.92919174,0.00028,2]
[329295522,1718221849532,-234.92919174,0.00028,2]
[329295524,1718221849544,-234.92919174,0.00028,2]
[329295526,1718221849556,-234.92919174,0.00028,2]
[329295528,1718221849567,-500.0,0.00028011,2]
[329295530,1718221849582,-500.0,0.00028148,2]
[329295533,1718221849596,-500.0,0.00028285,2]
[329295535,1718221849607,-500.0,0.00028422,2]
[329295537,1718221849619,-500.0,0.00028559,2]
[329295539,1718221849631,-1946.33266673,0.00029798,2]
[329295541,1718221849645,-2544.23705285,0.00029798,2]
[329295544,1718221849671,-234.92919174,0.00028,2]
[329295547,1718221849685,-6566.77080827,0.00029798,2]
[329295549,1718221849698,-2403.57912576,0.00029798,2]
[329295553,1718221849742,-500.0,0.00027136,2]
[329295555,1718221849754,-234.92919174,0.00028,2]
[329295557,1718221849765,-160.80374447,0.00028696,2]
[329295559,1718221849780,-339.19625553,0.00028696,2]
[329295561,1718221849791,-1015.47706447,0.00029798,2]
[329295564,1718221849809,-1229.33519723,0.00029798,2]
[329295566,1718221849823,-10483.18999704,0.00029798,2]
[329295992,1718223033672,-155.0,0.00016404,2]
[329295993,1718223033684,-244.62013219,0.00016405,2]
[329295994,1718223033697,-1012.0,0.00016505,2]
[329295995,1718223033708,-244.62013219,0.00016509,2]
[329295996,1718223033722,-244.62013219,0.00016612,2]
[329295997,1718223033733,-179.61,0.00016712,2]
[329295998,1718223033747,-2351.65260925,0.00017258,2]
[329295999,1718223033763,-150.0,0.00017259,2]
[329296000,1718223033774,-300.0,0.00017533,2]
[329296001,1718223033787,-11378.57,0.00017534,2]
[329296002,1718223033815,-499.99,0.00017534,2]
[329296003,1718223033826,-233.93,0.00017808,2]
[329296004,1718223033839,-300.0,0.0001914,2]
[329296005,1718223033850,-332.38,0.00019268,2]
[329296006,1718223033877,-150.99,0.00019268,2]
[329296007,1718223033890,-1280.15,0.00021018,2]
[329296008,1718223033904,-22881.35,0.00021077,2]
[329296009,1718223033915,-1852.42,0.00021174,2]
[329296010,1718223033927,-487.26,0.00021186,2]
[329296011,1718223033943,-598.36,0.00021335,2]
[329296012,1718223033953,-250.0,0.00021345,2]
[329296013,1718223033964,-1528.47,0.00021437,2]
[329296014,1718223033978,-332.38,0.00021532,2]
[329296015,1718223033989,-237.72,0.00021602,2]
[329296016,1718223034009,-156.62,0.00021908,2]
[329296017,1718223034019,-156.62,0.00022003,2]
[329296018,1718223034029,-156.62,0.00022098,2]
[329296019,1718223034039,-156.62,0.00022193,2]
[329296020,1718223034052,-156.62,0.00022288,2]
[329296021,1718223034072,-156.62,0.00022384,2]
[329296022,1718223034083,-156.62,0.00022479,2]
[329296023,1718223034093,-156.62,0.00022574,2]
[329296024,1718223034107,-156.62,0.00022669,2]
[329296025,1718223034136,-156.62,0.00022764,2]
[329296026,1718223034149,-156.62,0.00022859,2]
[329296027,1718223034177,-156.62,0.00022954,2]
[329296028,1718223034189,-250.0,0.00022956,2]
[329296029,1718223034201,-250.0,0.00023046,2]
[329296030,1718223034212,-156.62,0.00023049,2]
[329296031,1718223034230,-172.39,0.00023479,2]
[329296032,1718223034243,-332.38,0.00023796,2]
[329296033,1718223034266,-241.63,0.00023983,2]
[329296034,1718223034281,-150.0,0.00023983,2]
[329296035,1718223034302,-208.90252247,0.00024074,2]
[329296036,1718223034325,-500.0,0.00024081,2]
[329296037,1718223034354,-500.0,0.00024081,2]
[329296038,1718223034373,-500.0,0.00024081,2]
[329296039,1718223034386,-500.0,0.00024081,2]
[329296040,1718223034396,-500.0,0.00024081,2]
[329296041,1718223034406,-500.0,0.00024081,2]
[329296042,1718223034419,-500.0,0.00024081,2]
[329296043,1718223034433,-500.0,0.00024081,2]
[329296044,1718223034445,-500.0,0.00024081,2]
[329296045,1718223034456,-503.94304681,0.00024081,2]
[329296046,1718223034471,-500.0,0.00024081,2]
[329296047,1718223034485,-500.0,0.00024081,2]
[329296048,1718223034502,-500.0,0.00024081,2]
[329296049,1718223034514,-500.0,0.00024081,2]
[329296050,1718223034534,-508.1,0.00024081,2]
[329296051,1718223034546,-500.0,0.00024081,2]
[329296052,1718223034557,-500.0,0.00024081,2]
[329296053,1718223034567,-503.64488152,0.00024081,2]
[329296054,1718223034578,-500.0,0.00024081,2]
[329296055,1718223034588,-500.0,0.00024081,2]
[329296056,1718223034600,-500.0,0.00024081,2]
[329296057,1718223034610,-511.35996646,0.00024081,2]
[329296058,1718223034623,-526.83029913,0.00024081,2]
[329296059,1718223034637,-500.0,0.00024081,2]
[329296060,1718223034652,-778.45,0.00024081,2]
[329296061,1718223034671,-508.51,0.00024081,2]
[329296062,1718223034696,-500.0,0.00024081,2]
[329296063,1718223034716,-500.0,0.00024081,2]
[329296064,1718223034741,-500.0,0.00024081,2]
[329296065,1718223034758,-500.0,0.00024081,2]
[329296066,1718223034769,-500.0,0.00024081,2]
[329296067,1718223034783,-641.85,0.00024081,2]
[329296068,1718223034793,-500.0,0.00024081,2]
[329296069,1718223034805,-500.0,0.00024081,2]
[329296070,1718223034844,-500.0,0.00024081,2]
[329296071,1718223034856,-500.0,0.00024081,2]
[329296072,1718223034896,-500.0,0.00024081,2]
[329296073,1718223034915,-500.0,0.00024081,2]
[329296074,1718223034950,-1382.74,0.00024081,2]
[329296075,1718223034972,-500.0,0.00024081,2]
[329296076,1718223034989,-500.0,0.00024081,2]
[329296077,1718223035001,-500.0,0.00024081,2]
[329296078,1718223035014,-500.0,0.00024081,2]
[329296079,1718223035024,-500.0,0.00024081,2]
[329296080,1718223035041,-500.0,0.00024081,2]
[329296081,1718223035051,-500.0,0.00024081,2]
[329296082,1718223035061,-500.0,0.00024081,2]
[329296083,1718223035073,-500.0,0.00024081,2]
[329296084,1718223035088,-500.0,0.00024081,2]
[329296085,1718223035100,-500.0,0.00024081,2]
[329296086,1718223035121,-500.0,0.00024081,2]
[329296087,1718223035132,-500.0,0.00024081,2]
[329296088,1718223035146,-500.0,0.00024081,2]
[329296089,1718223035158,-500.0,0.00024081,2]
[329296090,1718223035191,-583.56,0.00024081,2]
[329296091,1718223035202,-500.0,0.00024081,2]
[329296092,1718223035213,-680.46,0.00024081,2]
[329296093,1718223035228,-500.0,0.00024081,2]
[329296094,1718223035238,-500.0,0.00024081,2]
[329296095,1718223035250,-500.0,0.00024081,2]
[329296096,1718223035277,-500.0,0.00024081,2]
[329296097,1718223035287,-500.0,0.00024081,2]
[329296098,1718223035299,-500.0,0.00024081,2]
[329296099,1718223035319,-562.14,0.00024081,2]
[329296100,1718223035330,-500.0,0.00024081,2]
[329296101,1718223035342,-500.0,0.00024081,2]
[329296102,1718223035352,-509.24480946,0.00024081,2]
[329296103,1718223035364,-500.0,0.00024081,2]
[329296104,1718223035376,-500.0,0.00024081,2]
[329296105,1718223035387,-500.0,0.00024081,2]
[329296106,1718223035436,-500.0,0.00024081,2]
[329296107,1718223035448,-500.0,0.00024081,2]
[329296108,1718223035458,-500.0,0.00024081,2]
[329296109,1718223035471,-500.0,0.00024081,2]
[329296110,1718223035481,-1392.58693338,0.00024081,2]
[329296111,1718223035491,-719.4340817,0.00024081,2]
[329296112,1718223035501,-400.0,0.00024081,2]
[329296113,1718223035521,-2336.78675648,0.00024081,2]
[329296114,1718223035532,-2138.20030163,0.00024082,2]
[329296115,1718223035547,-1219.2104629,0.00024082,2]
[329296116,1718223035557,-436.61426308,0.00024082,2]
[329296117,1718223035570,-625.85456106,0.00024082,2]
[329296118,1718223035586,-7543.72254498,0.00024082,2]
[329296119,1718223035597,-4291.83751585,0.00024082,2]
[329296120,1718223035618,-67537.12948468,0.00024082,2]
[329296121,1718223035770,-650.01339646,0.00024082,2]
[329296122,1718223035783,-765.29022052,0.00024082,2]
[329296141,1718223044396,-500.0,0.00024081,2]
[329296142,1718223044407,-67290.65,0.00024082,2]
[329296143,1718223044788,-347.347732,0.00024082,2]
[329296144,1718223044802,-1732.8407708,0.00024082,2]
[329296145,1718223044995,-2605.00747912,0.00024082,2]
[329296146,1718223045010,-902.07329446,0.00024082,2]
[329296147,1718223045092,-3378.35251307,0.00024082,2]
[329296148,1718223045104,-1377.3667903,0.00024082,2]
[329296149,1718223045117,-125003.11001438,0.00024082,2]
[329296150,1718223045128,-637.79328125,0.00024083,2]
[329296151,1718223045148,-557.56583359,0.00024083,2]
[329296152,1718223045163,-514.72641869,0.00024083,2]
[329296153,1718223045180,-513.70468611,0.00024083,2]
[329296154,1718223045199,-500.0,0.00024083,2]
[329296155,1718223045220,-512.76766077,0.00024083,2]
[329296158,1718223045235,-500.0,0.00024083,2]
[329296161,1718223045246,-519.89358532,0.00024083,2]
[329296165,1718223045289,-500.0,0.00024083,2]
[329296168,1718223045302,-508.48204061,0.00024083,2]
[329296170,1718223045314,-616.14711976,0.00024083,2]
[329296172,1718223045328,-509.16190143,0.00024083,2]
[329296174,1718223045339,-512.22436856,0.00024083,2]
[329296176,1718223045350,-500.0,0.00024083,2]
[329296177,1718223045362,-509.90527158,0.00024083,2]
[329296180,1718223045373,-505.58491773,0.00024083,2]
[329296182,1718223045384,-500.0,0.00024083,2]
[329296184,1718223045396,-500.0,0.00024083,2]
[329296187,1718223045411,-500.0,0.00024083,2]
[329296189,1718223045428,-500.0,0.00024083,2]
[329296191,1718223045443,-500.0,0.00024083,2]
[329296193,1718223045455,-304.428493,0.00024083,2]
[329296195,1718223045465,-500.0,0.00024083,2]
[329296197,1718223045486,-507.47146396,0.00024083,2]
[329296198,1718223045500,-500.0,0.00024083,2]
[329296200,1718223045515,-634.38291587,0.00024083,2]
[329296202,1718223045531,-505.22110552,0.00024083,2]
[329296204,1718223045545,-505.4333435,0.00024083,2]
[329296206,1718223045563,-500.0,0.00024083,2]
[329296208,1718223045579,-529.17,0.00024083,2]
[329296209,1718223045594,-509.56694635,0.00024083,2]
[329296210,1718223045609,-486.8718452,0.00024083,2]
[329296211,1718223045626,-512.98671695,0.00024083,2]
[329296212,1718223045643,-512.47440511,0.00024083,2]
[329296213,1718223045654,-500.0,0.00024083,2]
[329296214,1718223045677,-511.55835432,0.00024083,2]
[329296215,1718223045708,-501.46315362,0.00024083,2]
[329296216,1718223045720,-500.0,0.00024083,2]
[329296217,1718223045734,-500.0,0.00024083,2]
[329296218,1718223045756,-506.77799707,0.00024083,2]
[329296219,1718223045775,-510.94491433,0.00024083,2]
[329296220,1718223045790,-509.99022776,0.00024083,2]
[329296222,1718223045805,-523.17,0.00024083,2]
[329296224,1718223045830,-509.22532295,0.00024083,2]
[329296226,1718223045846,-510.499661,0.00024083,2]
[329296228,1718223045870,-500.0,0.00024083,2]
[329296230,1718223045884,-500.0,0.00024083,2]
[329296233,1718223045906,-500.0,0.00024083,2]
[329296235,1718223045920,-500.0,0.00024083,2]
[329296237,1718223045943,-500.0,0.00024083,2]
[329296239,1718223045956,-500.0,0.00024083,2]
[329296242,1718223045981,-510.70844885,0.00024083,2]
[329296243,1718223045995,-500.0,0.00024083,2]
[329296244,1718223046011,-500.0,0.00024083,2]
[329296245,1718223046023,-500.0,0.00024083,2]
[329296246,1718223046035,-500.0,0.00024083,2]
[329296247,1718223046065,-500.0,0.00024083,2]
[329296253,1718223046092,-500.0,0.00024083,2]